[Event "Austria 2nd BL-Mitte 2024-25"]
[Site "Austria"]
[Date "2025.04.04"]
[Round "9.1"]
[White "Renner, Christoph"]
[Black "Mihok, Oliver"]
[Result "0-1"]
[Annotator "TA"]
[ECO "C42"]
[WhiteElo "2300"]
[BlackElo "2536"]
[PlyCount "110"]
[EventDate "2025.03.30"]
[EventType "team-tourn"]
[EventCountry "AUT"]
[SourceTitle "playchess.com"]
[Source "ChessBase"]
[SourceQuality "1"]
[TimeControl "40/5400+30:1800+30"]

{[%evp 12,110,50,54,54,58,64,14,7,14,12,8,8,5,12,-132,13,8,21,19,16,10,22,12,25,24,23,26,26,4,5,7,11,10,4,4,20,12,45,3,6,0,0,0,0,-8,20,0,0,0,0,0,0,-12,-12,-11,-8,-8,-6,-9,-9,-10,0,-8,0,0,0,0,0,0,0,0,0,0,0,0,0,-8,0,0,0,0,0,0,0,-26,-27,-629,-633,-556,-530,-556,-1114,-5587,-1794,-29976,-29978,-29981,-29982,-29981,-29983]} 1. e4 {[%emt 0:00:35]} e5 {[%emt 0:00:10]} 2. Nf3 {[%emt 0:03:48]} Nf6 {[%emt 0:02:11]} 3. Nxe5 {[%emt 0:03:56]} Nxe4 {[%emt 0:00:53]} 4. Qe2 {[%emt 0:05:38]} Qe7 {[%emt 0:00:21]} 5. Qxe4 {[%emt 0:00:30]} d6 {[%emt 0:00:04]} 6. d4 {[%emt 0:03:55]} dxe5 {[%emt 0:00:07]} 7. dxe5 {[%emt 0:04:04]} (7. Qxe5 {simplifies} Qxe5+ 8. dxe5 Nc6 9. Bf4) 7... Nc6 {[%emt 0:00:07] C42: Petroff Defence: 3 Nxe5 and unusual White 3rd moves.} 8. Nc3 {[%emt 0:03:17]} Qxe5 {[%emt 0:01:58]} 9. Bf4 {[%emt 0:07:15]} (9. Qxe5+ $14 Nxe5 10. Bf4) 9... Qxe4+ $11 {[%emt 0:00:39] The position is equal.} 10. Nxe4 {[%emt 0:00:02]} Bf5 {[%emt 0:03:47]} 11. Bd3 {[%emt 0:05:54]} O-O-O {[%emt 0:11:22]} 12. O-O-O {[%emt 0:06:22]} Bg6 {[%emt 0:06:20]} (12... Nb4 13. Nd6+ Bxd6 14. Bxf5+ Kb8 15. Bg5 (15. Bxd6 Rxd6 16. Rxd6 cxd6 $16)) 13. a3 {[%emt 0:18:28] [#]} (13. f3 $11 {remains equal.}) 13... Be7 {[%emt 0:02:15]} (13... Rd4 $1 $17 14. Rhe1 f5) 14. f3 {[%emt 0:00:39]} Rd4 $146 {[%emt 0:13:08]} (14... Rhe8 15. h4 h5 16. Bg3 Nd4 17. Bf2 a6 18. Bxa6 bxa6 19. Bxd4 Bxe4 20. fxe4 Bd6 21. Bxg7 Rxe4 {½-½ Rakotomaharo,F (2454)-Frischmann,R (2388) BL2-Sued 2324 2023 (8.2)}) 15. c3 {[%emt 0:09:20]} Rdd8 {[%emt 0:04:10]} 16. Bc2 {[%emt 0:07:22]} Rhe8 {[%emt 0:00:50][%cal Bh8e8,Be8d8,Bd8d5,Bd5f5,Bf5f3][%mdl 32]} 17. Rhe1 {[%emt 0:02:28]} Bh4 {[%emt 0:08:18]} 18. Rxd8+ {[%emt 0:01:59]} Rxd8 {[%emt 0:03:14]} 19. g3 {[%emt 0:00:53]} Be7 {[%emt 0:01:08]} 20. Ng5 {[%emt 0:03:44]} Bxg5 {[%emt 0:06:22]} 21. Bxg5 {[%emt 0:00:06]} Rd5 {[%emt 0:03:23] Threatens to win with ...Bxc2.} 22. Bf4 {[%emt 0:00:55]} ({Don't blunder} 22. Re8+ $2 Kd7 23. Rf8 Rxg5 $19) 22... Bxc2 {[%emt 0:01:11]} 23. Kxc2 {[%emt 0:00:02][%mdl 4096] Endgame KRB-KRN} g5 {[%emt 0:00:08]} 24. Bc1 {[%emt 0:01:31]} Rf5 {[%emt 0:00:28]} 25. Re8+ {[%emt 0:07:01]} Kd7 {[%emt 0:00:06]} 26. Rh8 {[%emt 0:00:03]} Rxf3 {[%emt 0:02:44]} 27. Rxh7 {[%emt 0:00:05]} Rf2+ {[%emt 0:00:58]} 28. Kd3 {[%emt 0:02:15]} g4 {[%emt 0:04:05]} 29. Bf4 {[%emt 0:00:22] Wards off Ne5+} Ke6 {[%emt 0:24:33]} 30. b4 {[%emt 0:00:13]} Ne7 {[%emt 0:00:00]} 31. Rh6+ {[%emt 0:02:03]} f6 {[%emt 0:00:00]} 32. Bxc7 {[%emt 0:00:28]} Rf3+ {[%emt 0:00:00]} 33. Kd2 {[%emt 0:00:35]} Nd5 {[%emt 0:00:00][%csl LRc3,LRc7]} 34. Bb8 {[%emt 0:00:25]} Nxc3 {[%emt 0:00:00]} 35. Rh4 {[%emt 0:01:01]} Ne4+ {[%emt 0:00:00]} 36. Kc2 {[%emt 0:00:29]} f5 {[%emt 0:00:00]} 37. a4 {[%emt 0:00:15]} Ra3 {[%emt 0:00:00]} 38. a5 {[%emt 0:00:15]} Kd5 {[%emt 0:00:00]} 39. Kb2 {[%emt 0:01:02]} Rd3 {[%emt 0:00:00]} 40. Rh7 {[%emt 0:00:33]} a6 {[%emt 0:00:00]} 41. Rxb7 {[%emt 0:12:07]} Kc4 {[%emt 0:00:00]} 42. Bf4 {[%emt 0:07:13]} Rb3+ {[%emt 0:01:20]} 43. Kc2 {[%emt 0:01:33] And now Rc7+ would win.} Rxb4 {[%emt 0:02:00]} 44. Rb6 {[%emt 0:02:34]} Ra4 {[%emt 0:04:45]} 45. Rxa6 {[%emt 0:01:21]} Ra2+ {[%emt 0:00:25]} 46. Kc1 {[%emt 0:01:35]} Nc5 {[%emt 0:05:06]} 47. Kb1 {[%emt 0:03:54]} Rxh2 {[%emt 0:01:40]} 48. Rf6 {[%emt 0:00:21]} Ne4 {[%emt 0:05:07]} 49. Rf8 {[%emt 0:03:30][%mdl 8192] This move loses the game for White.} (49. Rc6+ $11 Kb5 50. Rc2 Rh1+ 51. Kb2) 49... Nc3+ $19 {[%emt 0:01:54]} 50. Kc1 {[%emt 0:00:01]} Ne2+ {[%emt 0:00:26]} 51. Kd1 {[%emt 0:00:23]} Nxf4 {[%emt 0:02:35]} 52. gxf4 {[%emt 0:00:25] [#]} Kd3 $1 {[%emt 0:01:03][%cal Rh2h1]} 53. Kc1 {[%emt 0:01:39]} g3 {[%emt 0:00:49] Black mates.} 54. Rd8+ {[%emt 0:00:30]} Ke4 {[%emt 0:00:40]} 55. a6 {[%emt 0:00:35]} g2 {[%emt 0:00:23] Weighted Error Value: White=0.51/Black=0.09 (flawless)   Loses game:     	White=1     	---        Mistake:       	White=2     	Black=1      Inaccurate:     	White=3     	Black=2      OK:         	White=21    	Black=23     Best:        	White=2     	Black=3      Strong:       	---       	Black=1} ({Stronger than} 55... Kxf4 56. a7 Ra2 57. a8=Q $11) 0-1

[Event "Austria 2nd BL-Mitte 2024-25"]
[Site "Austria"]
[Date "2025.04.04"]
[Round "9.2"]
[White "Schreiner, Till"]
[Black "Wisnet, Dominic"]
[Result "1-0"]
[Annotator "RC"]
[ECO "E12"]
[WhiteElo "2354"]
[BlackElo "2267"]
[PlyCount "61"]
[EventDate "2025.03.30"]
[EventType "team-tourn"]
[EventCountry "AUT"]
[SourceTitle "playchess.com"]
[Source "ChessBase"]
[SourceQuality "1"]
[TimeControl "40/5400+30:1800+30"]

1. d4 {[%emt 0:00:02]} Nf6 {[%emt 0:00:09]} 2. c4 {[%emt 0:00:07]} e6 {[%emt 0:00:05]} 3. Nf3 {[%emt 0:00:13]} b6 {[%emt 0:01:32]} 4. a3 {[%emt 0:00:47]} Bb7 {[%emt 0:00:09]} 5. Nc3 {[%emt 0:00:09]} Be7 {[%emt 0:01:20]} 6. Qc2 {[%emt 0:01:56]} d5 {[%emt 0:00:24]} 7. cxd5 {[%emt 0:00:13]} exd5 {[%emt 0:00:22]} 8. g3 {[%emt 0:01:37]} O-O {[%emt 0:00:17]} 9. Bg2 {[%emt 0:00:04]} Na6 {[%emt 0:01:43]} 10. O-O {[%emt 0:00:35]} Re8 {[%emt 0:03:25]} 11. b4 {[%emt 0:13:35]} c6 {[%emt 0:06:12]} 12. Rd1 {[%emt 0:09:13]} Nc7 {[%emt 0:06:20]} 13. e4 {[%emt 0:11:28]} dxe4 {[%emt 0:07:57]} 14. Ng5 {[%emt 0:03:35]} a5 {[%emt 0:14:24]} 15. bxa5 {[%emt 0:03:34]} Rxa5 {[%emt 0:02:26]} 16. Ngxe4 {[%emt 0:03:57]} Nfd5 {[%emt 0:03:49]} 17. a4 {[%emt 0:03:30]} Qa8 {[%emt 0:04:41]} 18. Nxd5 {[%emt 0:06:11]} Nxd5 {[%emt 0:01:04]} 19. Bd2 {[%emt 0:02:08]} Nb4 {[%emt 0:08:27]} 20. Bxb4 {[%emt 0:01:39]} Bxb4 {[%emt 0:01:22]} 21. Rab1 {[%emt 0:03:08]} Rxa4 {[%emt 0:05:02]} 22. Ng5 {[%emt 0:02:36]} h6 {[%emt 0:07:56]} 23. Qh7+ {[%emt 0:04:29]} Kf8 {[%emt 0:00:01]} 24. Nf3 {[%emt 0:09:57]} f6 {[%emt 0:07:19]} 25. Nh4 {[%emt 0:01:00]} Bc8 {[%emt 0:07:57]} 26. d5 {[%emt 0:04:21]} Bc5 {[%emt 0:02:18]} 27. dxc6 {[%emt 0:04:13]} Rd4 {[%emt 0:01:52]} 28. Rxd4 {[%emt 0:01:01]} Bxd4 {[%emt 0:00:04]} 29. Bd5 {[%emt 0:00:28]} Ke7 {[%emt 0:03:01]} 30. Qe4+ {[%emt 0:02:50]} Be5 {[%emt 0:00:49]} 31. Qb4+ {[%emt 0:00:08]} 1-0

[Event "Austria 2nd BL-Mitte 2024-25"]
[Site "Austria"]
[Date "2025.04.04"]
[Round "9.3"]
[White "Testor, Sebastian"]
[Black "Wagner, Stephan"]
[Result "0-1"]
[Annotator "RC"]
[ECO "D11"]
[WhiteElo "2282"]
[BlackElo "2240"]
[PlyCount "62"]
[EventDate "2025.03.30"]
[EventType "team-tourn"]
[EventCountry "AUT"]
[SourceTitle "playchess.com"]
[Source "ChessBase"]
[SourceQuality "1"]
[TimeControl "40/5400+30:1800+30"]

1. d4 {[%emt 0:00:03]} d5 {[%emt 0:00:05]} 2. Nf3 {[%emt 0:00:07]} Nf6 {[%emt 0:00:04]} 3. c4 {[%emt 0:00:07]} c6 {[%emt 0:00:04]} 4. e3 {[%emt 0:00:30]} a6 {[%emt 0:00:06]} 5. Bd3 {[%emt 0:02:17]} Bg4 {[%emt 0:00:12]} 6. Nbd2 {[%emt 0:00:39]} Nbd7 {[%emt 0:00:21]} 7. Qc2 {[%emt 0:01:21]} e6 {[%emt 0:00:27]} 8. O-O {[%emt 0:01:00]} dxc4 {[%emt 0:01:03]} 9. Bxc4 {[%emt 0:10:00]} c5 {[%emt 0:00:34]} 10. dxc5 {[%emt 0:08:39]} Bxc5 {[%emt 0:01:00]} 11. a3 {[%emt 0:02:59]} Rc8 {[%emt 0:05:36]} 12. b4 {[%emt 0:06:30]} Bxf3 {[%emt 0:17:07]} 13. Nxf3 {[%emt 0:07:30]} b5 {[%emt 0:04:13]} 14. bxc5 {[%emt 0:09:27]} Rxc5 {[%emt 0:00:15]} 15. Qe2 {[%emt 0:01:16]} Rxc4 {[%emt 0:04:30]} 16. a4 {[%emt 0:00:49]} O-O {[%emt 1:02:53]} 17. axb5 {[%emt 0:07:57]} axb5 {[%emt 0:00:00]} 18. Nd2 {[%emt 0:01:37]} Ra4 {[%emt 0:00:00]} 19. Rb1 {[%emt 0:09:20]} Nd5 {[%emt 0:00:00]} 20. Qxb5 {[%emt 0:02:15]} Nc3 {[%emt 0:00:00]} 21. Qc6 {[%emt 0:02:39]} Qc8 {[%emt 0:00:00]} 22. Qxc8 {[%emt 0:00:20]} Rxc8 {[%emt 0:00:00]} 23. Rb7 {[%emt 0:03:17]} Nc5 {[%emt 0:00:00]} 24. Rb6 {[%emt 0:01:39]} Ne2+ {[%emt 0:00:00]} 25. Kh1 {[%emt 0:00:04]} Nd3 {[%emt 0:00:00]} 26. Bb2 {[%emt 0:01:42]} Ra2 {[%emt 0:00:00]} 27. Nc4 {[%emt 0:01:22]} h5 {[%emt 0:00:00]} 28. Nd6 {[%emt 0:02:24]} Nxf2+ {[%emt 0:00:00]} 29. Rxf2 {[%emt 0:00:04]} Ra1+ {[%emt 0:00:00]} 30. Bxa1 {[%emt 0:00:14]} Rc1+ {[%emt 0:00:00]} 31. Rf1 {[%emt 0:00:04]} Rxf1# {[%emt 0:00:00]} 0-1

[Event "Austria 2nd BL-Mitte 2024-25"]
[Site "Austria"]
[Date "2025.04.04"]
[Round "9.4"]
[White "Manhardt, Thomas"]
[Black "Taggatz, Mario"]
[Result "1/2-1/2"]
[Annotator "ChessBase"]
[ECO "A01"]
[WhiteElo "2116"]
[BlackElo "2151"]
[PlyCount "61"]
[EventDate "2025.03.30"]
[EventType "team-tourn"]
[EventCountry "AUT"]
[SourceTitle "playchess.com"]
[Source "ChessBase"]
[SourceQuality "1"]
[TimeControl "40/5400+30:1800+30"]

1. b3 {[%emt 0:00:05]} e5 {[%emt 0:00:17]} 2. Bb2 {[%emt 0:00:08]} d6 {[%emt 0:00:05]} 3. e3 {[%emt 0:00:15]} g6 {[%emt 0:00:42]} 4. d4 {[%emt 0:02:15]} Bg7 {[%emt 0:00:24]} 5. Nf3 {[%emt 0:00:46]} exd4 {[%emt 0:04:17]} 6. exd4 {[%emt 0:01:16]} Ne7 {[%emt 0:03:27]} 7. Be2 {[%emt 0:02:37]} O-O {[%emt 0:00:16]} 8. O-O {[%emt 0:00:03]} c6 {[%emt 0:15:29]} 9. c4 {[%emt 0:02:48]} Nd7 {[%emt 0:01:16]} 10. Re1 {[%emt 0:02:20]} Nf6 {[%emt 0:01:35]} 11. Nc3 {[%emt 0:02:24]} Bf5 {[%emt 0:02:19]} 12. Bd3 {[%emt 0:03:04]} Re8 {[%emt 0:05:26]} 13. h3 {[%emt 0:01:55]} Bxd3 {[%emt 0:03:36]} 14. Qxd3 {[%emt 0:00:06]} Qd7 {[%emt 0:00:56]} 15. Rad1 {[%emt 0:07:44]} Nf5 {[%emt 0:09:13]} 16. Ba3 {[%emt 0:12:09]} Rxe1+ {[%emt 0:03:44]} 17. Rxe1 {[%emt 0:04:09]} Re8 {[%emt 0:00:28]} 18. Rxe8+ {[%emt 0:05:10]} Nxe8 {[%emt 0:00:55]} 19. d5 {[%emt 0:12:17]} c5 {[%emt 0:03:43]} 20. Bc1 {[%emt 0:01:42]} a6 {[%emt 0:06:39]} 21. Bf4 {[%emt 0:09:29]} Nd4 {[%emt 0:05:24]} 22. Nxd4 {[%emt 0:02:18]} Bxd4 {[%emt 0:00:12]} 23. Ne4 {[%emt 0:05:10]} Qf5 {[%emt 0:05:09]} 24. Bg3 {[%emt 0:06:10]} Kg7 {[%emt 0:06:14]} 25. Qf3 {[%emt 0:02:18]} Qd7 {[%emt 0:02:49]} 26. Bf4 {[%emt 0:00:54]} Qe7 {[%emt 0:02:32]} 27. Bg5 {[%emt 0:04:37]} Qe5 {[%emt 0:06:42]} 28. Bf4 {[%emt 0:00:48]} Qe7 {[%emt 0:00:11]} 29. Bg5 {[%emt 0:00:26]} Qe5 {[%emt 0:00:05]} 30. Bf4 {[%emt 0:02:10]} Qe7 {[%emt 0:00:18]} 31. Bg5 {[%emt 0:00:06]} 1/2-1/2

[Event "Austria 2nd BL-Mitte 2024-25"]
[Site "Austria"]
[Date "2025.04.04"]
[Round "9.5"]
[White "Hellmayr, Alois"]
[Black "Sohn, Benedikt"]
[Result "1/2-1/2"]
[Annotator "ChessBase"]
[ECO "D05"]
[WhiteElo "2174"]
[BlackElo "2028"]
[PlyCount "102"]
[EventDate "2025.03.30"]
[EventType "team-tourn"]
[EventCountry "AUT"]
[SourceTitle "playchess.com"]
[Source "ChessBase"]
[SourceQuality "1"]
[TimeControl "40/5400+30:1800+30"]

1. Nf3 {[%emt 0:00:08]} Nf6 {[%emt 0:00:04]} 2. d4 {[%emt 0:00:19]} c5 {[%emt 0:00:40]} 3. c3 {[%emt 0:01:57]} e6 {[%emt 0:02:10]} 4. e3 {[%emt 0:02:06]} b6 {[%emt 0:02:46]} 5. Nbd2 {[%emt 0:00:58]} Bb7 {[%emt 0:01:00]} 6. Bd3 {[%emt 0:00:21]} d5 {[%emt 0:01:07]} 7. Qe2 {[%emt 0:01:27]} Nbd7 {[%emt 0:02:37]} 8. O-O {[%emt 0:04:49]} Be7 {[%emt 0:04:41]} 9. e4 {[%emt 0:03:23]} dxe4 {[%emt 0:01:47]} 10. Nxe4 {[%emt 0:00:11]} O-O {[%emt 0:04:18]} 11. Re1 {[%emt 0:03:46]} cxd4 {[%emt 0:09:26]} 12. Nxd4 {[%emt 0:06:14]} Nc5 {[%emt 0:09:32]} 13. Nxc5 {[%emt 0:07:44]} Bxc5 {[%emt 0:01:25]} 14. Be3 {[%emt 0:02:26]} Nd5 {[%emt 0:14:13]} 15. Rad1 {[%emt 0:08:04]} Qf6 {[%emt 0:05:12]} 16. Qg4 {[%emt 0:06:01]} Nxe3 {[%emt 0:05:35]} 17. fxe3 {[%emt 0:07:17]} g6 {[%emt 0:04:17]} 18. Be4 {[%emt 0:03:59]} Bxe4 {[%emt 0:05:44]} 19. Qxe4 {[%emt 0:00:07]} Rad8 {[%emt 0:04:01]} 20. Nc6 {[%emt 0:08:13]} Rxd1 {[%emt 0:01:38]} 21. Rxd1 {[%emt 0:00:09]} Qg5 {[%emt 0:00:36]} 22. Rd3 {[%emt 0:01:38]} b5 {[%emt 0:06:33]} 23. Qe5 {[%emt 0:11:05]} Qh4 {[%emt 0:04:25]} 24. Rd1 {[%emt 0:05:00]} Qg4 {[%emt 0:03:38]} 25. Rd2 {[%emt 0:01:22]} Qc4 {[%emt 0:01:25]} 26. a3 {[%emt 0:07:59]} Bxe3+ {[%emt 0:01:11]} 27. Qxe3 {[%emt 0:00:11]} Qxc6 {[%emt 0:00:02]} 28. Qxa7 {[%emt 0:00:14]} Qe4 {[%emt 0:00:17]} 29. Qf2 {[%emt 0:00:51]} Qb1+ {[%emt 0:01:17]} 30. Qf1 {[%emt 0:00:07]} Qe4 {[%emt 0:00:06]} 31. Qf2 {[%emt 0:03:13]} h5 {[%emt 0:01:00]} 32. h3 {[%emt 0:00:21]} f6 {[%emt 0:01:49]} 33. Rd7 {[%emt 0:01:10]} g5 {[%emt 0:01:15]} 34. Rd4 {[%emt 0:01:05]} Qe5 {[%emt 0:00:33]} 35. Rd7 {[%emt 0:02:00]} Rf7 {[%emt 0:00:45]} 36. Rd8+ {[%emt 0:00:29]} Kg7 {[%emt 0:00:02]} 37. Qd4 {[%emt 0:01:23]} Qe1+ {[%emt 0:00:33]} 38. Kh2 {[%emt 0:00:05]} h4 {[%emt 0:00:08]} 39. Qd3 {[%emt 0:00:50]} e5 {[%emt 0:01:34]} 40. Re8 {[%emt 0:00:56]} Qf2 {[%emt 0:00:35]} 41. Qxb5 {[%emt 0:04:24]} g4 {[%emt 0:12:20]} 42. hxg4 {[%emt 0:00:30]} Qg3+ {[%emt 0:00:05]} 43. Kh1 {[%emt 0:09:36]} Qe1+ {[%emt 0:01:12]} 44. Kh2 {[%emt 0:00:05]} Qg3+ {[%emt 0:00:09]} 45. Kh1 {[%emt 0:05:54]} Qe1+ {[%emt 0:00:06]} 46. Kh2 {[%emt 0:00:04]} Qg3+ {[%emt 0:00:07]} 47. Kg1 {[%emt 0:01:47]} h3 {[%emt 0:00:07]} 48. Qc6 {[%emt 0:00:21]} h2+ {[%emt 0:00:27]} 49. Kh1 {[%emt 0:00:03]} Qe1+ {[%emt 0:00:06]} 50. Kxh2 {[%emt 0:00:06]} Qh4+ {[%emt 0:00:04]} 51. Kg1 {[%emt 0:00:04]} Qe1+ {[%emt 0:00:04]} 1/2-1/2

[Event "Austria 2nd BL-Mitte 2024-25"]
[Site "Austria"]
[Date "2025.04.04"]
[Round "9.6"]
[White "Hatzl, Johannes"]
[Black "Hiermann, Dietmar"]
[Result "1-0"]
[Annotator "ChessBase"]
[ECO "C54"]
[WhiteElo "2079"]
[BlackElo "2259"]
[PlyCount "127"]
[EventDate "2025.03.30"]
[EventType "team-tourn"]
[EventCountry "AUT"]
[SourceTitle "playchess.com"]
[Source "ChessBase"]
[SourceQuality "1"]
[TimeControl "40/5400+30:1800+30"]

1. e4 {[%emt 0:00:03]} e5 {[%emt 0:00:08]} 2. Nf3 {[%emt 0:00:16]} Nc6 {[%emt 0:00:02]} 3. Bc4 {[%emt 0:00:35]} Bc5 {[%emt 0:00:07]} 4. c3 {[%emt 0:00:30]} Nf6 {[%emt 0:00:07]} 5. d4 {[%emt 0:00:43]} exd4 {[%emt 0:00:08]} 6. e5 {[%emt 0:00:26]} d5 {[%emt 0:00:14]} 7. Bb5 {[%emt 0:00:27]} Ne4 {[%emt 0:00:36]} 8. cxd4 {[%emt 0:00:26]} Bb4+ {[%emt 0:13:44]} 9. Bd2 {[%emt 0:00:29]} Be7 {[%emt 0:06:34]} 10. h3 {[%emt 0:15:57]} O-O {[%emt 0:05:01]} 11. O-O {[%emt 0:02:32]} Bd7 {[%emt 0:05:25]} 12. Nc3 {[%emt 0:03:51]} Nxc3 {[%emt 0:02:33]} 13. bxc3 {[%emt 0:00:29]} Nxe5 {[%emt 0:01:21]} 14. Bxd7 {[%emt 0:00:52]} Nxf3+ {[%emt 0:01:31]} 15. Qxf3 {[%emt 0:00:06]} Qxd7 {[%emt 0:00:05]} 16. Rab1 {[%emt 0:01:58]} c6 {[%emt 0:00:47]} 17. Rfe1 {[%emt 0:01:29]} Rfe8 {[%emt 0:01:11]} 18. Bf4 {[%emt 0:08:03]} Bf8 {[%emt 0:03:24]} 19. Re3 {[%emt 0:05:54]} Rxe3 {[%emt 0:10:14]} 20. Qxe3 {[%emt 0:01:32]} b6 {[%emt 0:01:13]} 21. Re1 {[%emt 0:00:17]} c5 {[%emt 0:00:52]} 22. dxc5 {[%emt 0:06:16]} bxc5 {[%emt 0:00:52]} 23. Qe5 {[%emt 0:03:17]} Rd8 {[%emt 0:04:34]} 24. Rd1 {[%emt 0:03:12]} Be7 {[%emt 0:12:31]} 25. Rd3 {[%emt 0:15:11]} Bf6 {[%emt 0:01:49]} 26. Qe2 {[%emt 0:02:00]} d4 {[%emt 0:06:20]} 27. cxd4 {[%emt 0:01:03]} cxd4 {[%emt 0:01:35]} 28. Qd1 {[%emt 0:06:20]} g6 {[%emt 0:05:40]} 29. Qd2 {[%emt 0:04:25]} Qd5 {[%emt 0:04:40]} 30. Qe2 {[%emt 0:04:40]} Kg7 {[%emt 0:01:32]} 31. Qd2 {[%emt 0:00:44]} h5 {[%emt 0:01:38]} 32. Bh6+ {[%emt 0:04:46]} Kh7 {[%emt 0:00:17]} 33. Rf3 {[%emt 0:00:47]} Be5 {[%emt 0:02:13]} 34. Bf4 {[%emt 0:02:49]} Bg7 {[%emt 0:00:52]} 35. Rd3 {[%emt 0:01:06]} Rc8 {[%emt 0:03:15]} 36. Rb3 {[%emt 0:01:28]} Qf5 {[%emt 0:00:45]} 37. Rd3 {[%emt 0:00:42]} Rc4 {[%emt 0:00:17]} 38. Rf3 {[%emt 0:02:35]} Qc5 {[%emt 0:01:51]} 39. Rd3 {[%emt 0:01:01]} Rc2 {[%emt 0:01:13]} 40. Qe1 {[%emt 0:00:28]} Rxa2 {[%emt 0:01:10]} 41. Qe8 {[%emt 0:30:43]} Qc4 {[%emt 0:31:12]} 42. Rf3 {[%emt 0:00:00]} Qe6 {[%emt 0:00:00]} 43. Qd8 {[%emt 0:00:00]} Qe1+ {[%emt 0:00:00]} 44. Kh2 {[%emt 0:00:00]} Rxf2 {[%emt 0:00:00]} 45. Bg3 {[%emt 0:00:00]} Rxf3 {[%emt 0:00:00]} 46. Bxe1 {[%emt 0:00:00]} Rf1 {[%emt 0:00:00]} 47. Bg3 {[%emt 0:00:00]} Rf5 {[%emt 0:00:00]} 48. Kg1 {[%emt 0:00:00]} a6 {[%emt 0:00:00]} 49. Qd7 {[%emt 0:00:00]} Kg8 {[%emt 0:00:00]} 50. Qc8+ {[%emt 0:00:00]} Kh7 {[%emt 0:00:00]} 51. Qxa6 {[%emt 0:00:00]} Bf6 {[%emt 0:00:16]} 52. Qd6 {[%emt 0:00:00]} h4 {[%emt 0:02:30]} 53. Bf2 {[%emt 0:00:00]} Be5 {[%emt 0:01:49]} 54. Qd8 {[%emt 0:00:00]} Rf4 {[%emt 0:00:40]} 55. Bxh4 {[%emt 0:00:00]} d3 {[%emt 0:01:15]} 56. Bf2 {[%emt 0:00:00]} Ra4 {[%emt 0:00:25]} 57. g4 {[%emt 0:00:00]} Ra3 {[%emt 0:01:41]} 58. Be3 {[%emt 0:00:00]} Bg7 {[%emt 0:00:39]} 59. Kg2 {[%emt 0:00:04]} Rb3 {[%emt 0:00:25]} 60. Qd5 {[%emt 0:00:45]} Rc3 {[%emt 0:00:36]} 61. h4 {[%emt 0:02:17]} Kg8 {[%emt 0:00:02]} 62. Kf3 {[%emt 0:00:58]} Ra3 {[%emt 0:00:13]} 63. Bc5 {[%emt 0:01:16]} Ra5 {[%emt 0:00:22]} 64. Qd8+ {[%emt 0:00:19]} 1-0

[Event "Austria 2nd BL-Mitte 2024-25"]
[Site "Austria"]
[Date "2025.04.04"]
[Round "9.7"]
[White "Postlmayer, Jakob"]
[Black "Csonka, Balazs"]
[Result "*"]
[Annotator "RC"]
[ECO "C02"]
[WhiteElo "2403"]
[BlackElo "2459"]
[PlyCount "54"]
[EventDate "2025.03.30"]
[EventType "team-tourn"]
[EventCountry "AUT"]
[SourceTitle "playchess.com"]
[Source "ChessBase"]
[SourceQuality "1"]
[TimeControl "40/5400+30:1800+30"]

1. e4 {[%emt 0:00:03]} e6 {[%emt 0:00:24]} 2. d4 {[%emt 0:04:33]} d5 {[%emt 0:02:25]} 3. e5 {[%emt 0:00:05]} c5 {[%emt 0:00:28]} 4. c3 {[%emt 0:00:03]} Nc6 {[%emt 0:00:34]} 5. Nf3 {[%emt 0:00:03]} Bd7 {[%emt 0:00:30]} 6. Bd3 {[%emt 0:01:51]} Qb6 {[%emt 0:07:04]} 7. O-O {[%emt 0:01:58]} Nge7 {[%emt 0:03:38]} 8. Re1 {[%emt 0:06:01]} Ng6 {[%emt 1:19:27]} 9. a3 {[%emt 0:07:27]} Be7 {[%emt 0:03:25]} 10. Bc2 {[%emt 0:03:03]} O-O {[%emt 0:16:12]} 11. h4 {[%emt 0:07:52]} Rfc8 {[%emt 0:01:33]} 12. h5 {[%emt 0:02:44]} Nf8 {[%emt 0:00:22]} 13. Ra2 {[%emt 0:02:54]} a5 {[%emt 0:04:24]} 14. Be3 {[%emt 0:06:02]} Rc7 {[%emt 0:04:26]} 15. Nbd2 {[%emt 0:01:56]} cxd4 {[%emt 0:01:41]} 16. Nxd4 {[%emt 0:05:39]} Nxd4 {[%emt 0:02:11]} 17. Bxd4 {[%emt 0:00:31]} Qc6 {[%emt 0:05:47]} 18. Re3 {[%emt 0:08:22]} Be8 {[%emt 0:04:08]} 19. Rg3 {[%emt 0:00:21]} Nd7 {[%emt 0:08:22]} 20. Qg4 {[%emt 0:16:22]} Bf8 {[%emt 0:00:20]} 21. Nf3 {[%emt 0:00:51]} g6 {[%emt 0:05:46]} 22. Ng5 {[%emt 0:07:13]} Bg7 {[%emt 0:01:20]} 23. f4 {[%emt 0:02:05]} Nf8 {[%emt 0:01:46]} 24. Ra1 {[%emt 0:01:41]} Qb5 {[%emt 0:01:19]} 25. b3 {[%emt 0:00:56]} Rac8 {[%emt 0:02:58]} 26. Rf1 {[%emt 0:00:32]} Qd7 {[%emt 0:03:06]} 27. Rh3 {[%emt 0:01:01]} Qe7 {[%emt 0:00:46]} *

[Event "Austria 2nd BL-Mitte 2024-25"]
[Site "Austria"]
[Date "2025.04.04"]
[Round "9.8"]
[White "Kristoferitsch, Daniel"]
[Black "Sandhoefner, Florian"]
[Result "*"]
[Annotator "RC"]
[ECO "D43"]
[WhiteElo "2282"]
[BlackElo "2214"]
[PlyCount "76"]
[EventDate "2025.03.30"]
[EventType "team-tourn"]
[EventCountry "AUT"]
[SourceTitle "playchess.com"]
[Source "ChessBase"]
[SourceQuality "1"]
[TimeControl "40/5400+30:1800+30"]

1. d4 {[%emt 0:00:01]} d5 {[%emt 0:00:07]} 2. c4 {[%emt 0:00:05]} c6 {[%emt 0:00:04]} 3. Nf3 {[%emt 1:31:54]} Nf6 {[%emt 0:00:06]} 4. Nc3 {[%emt 0:00:07]} e6 {[%emt 0:00:05]} 5. Bg5 {[%emt 0:00:08]} h6 {[%emt 0:00:09]} 6. Bxf6 {[%emt 0:00:23]} Qxf6 {[%emt 0:00:10]} 7. e3 {[%emt 0:00:06]} Nd7 {[%emt 0:00:09]} 8. Be2 {[%emt 0:00:06]} g6 {[%emt 0:00:59]} 9. O-O {[%emt 0:00:08]} Bg7 {[%emt 0:01:58]} 10. e4 {[%emt 0:00:12]} dxc4 {[%emt 0:01:04]} 11. e5 {[%emt 0:01:14]} Qe7 {[%emt 0:18:12]} 12. Nd2 {[%emt 0:00:26]} O-O {[%emt 0:00:10]} 13. Nxc4 {[%emt 0:00:05]} Rd8 {[%emt 0:02:16]} 14. Nd6 {[%emt 0:00:53]} c5 {[%emt 0:04:03]} 15. f4 {[%emt 0:02:36]} cxd4 {[%emt 0:02:53]} 16. Nce4 {[%emt 0:00:13]} f6 {[%emt 0:05:42]} 17. Rc1 {[%emt 0:10:29]} Nb6 {[%emt 0:30:58]} 18. Qxd4 {[%emt 0:07:59]} Nd5 {[%emt 0:03:25]} 19. Qd2 {[%emt 0:09:54]} f5 {[%emt 0:15:22]} 20. Nc3 {[%emt 0:03:41]} Rxd6 {[%emt 0:01:33]} 21. exd6 {[%emt 0:00:42]} Qxd6 {[%emt 0:00:02]} 22. Rfd1 {[%emt 0:08:06]} Qc5+ {[%emt 0:09:23]} 23. Kh1 {[%emt 0:00:20]} Bxc3 {[%emt 0:00:29]} 24. bxc3 {[%emt 0:00:40]} Bd7 {[%emt 0:00:07]} 25. c4 {[%emt 0:01:27]} Nf6 {[%emt 0:00:19]} 26. Qd4 {[%emt 0:00:47]} Qxd4 {[%emt 0:01:06]} 27. Rxd4 {[%emt 0:00:06]} Bc6 {[%emt 0:00:05]} 28. Rcd1 {[%emt 0:00:11]} Re8 {[%emt 0:01:15]} 29. Rd8 {[%emt 0:00:45]} Kf7 {[%emt 0:00:18]} 30. Rxe8 {[%emt 0:00:15]} Kxe8 {[%emt 0:00:22]} 31. Kg1 {[%emt 0:00:14]} Ke7 {[%emt 0:01:14]} 32. g3 {[%emt 0:01:38]} e5 {[%emt 0:01:32]} 33. fxe5 {[%emt 0:01:42]} Nd7 {[%emt 0:00:02]} 34. Kf2 {[%emt 0:51:46]} Nxe5 {[%emt 0:00:24]} 35. h4 {[%emt 0:01:20]} g5 {[%emt 0:00:27]} 36. Rd4 {[%emt 0:05:25]} b6 {[%emt 0:01:23]} 37. Ke3 {[%emt 0:02:43]} Bb7 {[%emt 0:00:16]} 38. hxg5 {[%emt 0:00:33]} hxg5 {[%emt 0:00:01]} *